[Event "DSAM Bad Wildungen 2024"]
[Site "Bad Wildungen"]
[Date "2024.08.02"]
[Round "4.43"]
[White "Shanmuganathan, Adhav"]
[Black "Schenk, Quentin Alexander"]
[Result "1-0"]
[Annotator "NA"]
[ECO "B15"]
[WhiteElo "1659"]
[BlackElo "1530"]
[PlyCount "89"]
[EventDate "2024.07.31"]
[EventCountry "GER"]
[SourceTitle "playchess.com"]
[Source "ChessBase"]
[SourceQuality "1"]
[TimeControl "40/5400+30:900+30"]

1. e4 {[%emt 0:00:04]} c6 {[%emt 0:00:05]} 2. d4 {[%emt 0:01:09]} d5 {[%emt 0:00:05]} 3. Nc3 {[%emt 0:00:12]} dxe4 {[%emt 0:00:30]} 4. Nxe4 {[%emt 0:00:11]} Nf6 {[%emt 0:00:03]} 5. Ng3 {[%emt 0:00:44]} e6 {[%emt 0:03:26]} 6. c3 {[%emt 0:01:21]} Bd6 {[%emt 0:01:02]} 7. Bd3 {[%emt 0:02:42]} Bxg3 {[%emt 0:01:54]} 8. hxg3 {[%emt 0:01:27]} Nbd7 {[%emt 0:01:20]} 9. Nf3 {[%emt 0:01:31]} O-O {[%emt 0:09:40]} 10. Qc2 {[%emt 0:03:36]} g6 {[%emt 0:01:51]} 11. Bh6 {[%emt 0:03:01]} Re8 {[%emt 0:00:13]} 12. Ne5 {[%emt 0:03:22]} Nxe5 {[%emt 0:02:47]} 13. dxe5 {[%emt 0:02:06]} Ng4 {[%emt 0:00:37]} 14. Bf4 {[%emt 0:01:05]} Qd5 {[%emt 0:04:21]} 15. Be4 {[%emt 0:03:14]} Qa5 {[%emt 0:00:10]} 16. b4 {[%emt 0:00:42]} Qc7 {[%emt 0:00:07]} 17. Qe2 {[%emt 0:02:19]} Nxe5 {[%emt 0:00:20]} 18. Bxg6 {[%emt 0:00:49]} fxg6 {[%emt 0:00:51]} 19. Bxe5 {[%emt 0:00:44]} Qf7 {[%emt 0:02:01]} 20. Qe3 {[%emt 0:02:10]} Qf5 {[%emt 0:03:50]} 21. O-O-O {[%emt 0:07:07]} Qf8 {[%emt 0:10:42]} 22. Rh6 {[%emt 0:02:03]} Qf5 {[%emt 0:01:59]} 23. f4 {[%emt 1:00:21]} a5 {[%emt 0:03:32]} 24. Qd2 {[%emt 0:00:00]} axb4 {[%emt 0:01:13]} 25. Rdh1 {[%emt 0:00:00]} bxc3 {[%emt 0:05:03]} 26. Bxc3 {[%emt 0:00:00]} Re7 {[%emt 0:03:48]} 27. Qd8+ {[%emt 0:00:00]} Qf8 {[%emt 0:00:08]} 28. Qxf8+ {[%emt 0:00:00]} Kxf8 {[%emt 0:00:05]} 29. Bb4 {[%emt 0:00:00]} Rxa2 {[%emt 0:00:42]} 30. Bxe7+ {[%emt 0:00:00]} Kxe7 {[%emt 0:00:04]} 31. Rxh7+ {[%emt 0:00:00]} Kf6 {[%emt 0:00:05]} 32. R1h2 {[%emt 0:00:00]} e5 {[%emt 0:00:47]} 33. fxe5+ {[%emt 0:00:00]} Kxe5 {[%emt 0:00:10]} 34. Rc7 {[%emt 0:00:00]} Bf5 {[%emt 0:00:43]} 35. Rxb7 {[%emt 0:00:00]} Be4 {[%emt 0:01:07]} 36. Re7+ {[%emt 0:00:00]} Kf5 {[%emt 0:00:07]} 37. g4+ {[%emt 0:00:00]} Kf4 {[%emt 0:00:23]} 38. g3+ {[%emt 0:00:00]} Kxg3 {[%emt 0:00:47]} 39. Rxa2 {[%emt 0:00:00]} Bd5 {[%emt 0:00:18]} 40. Ra4 {[%emt 0:00:00]} Kh4 {[%emt 0:00:54]} 41. Re5 {[%emt 0:00:00]} g5 {[%emt 0:15:28]} 42. Kd2 {[%emt 0:00:00]} Bf3 {[%emt 0:00:17]} 43. Ke3 {[%emt 0:00:00]} Bxg4 {[%emt 0:00:07]} 44. Ree4 {[%emt 0:00:00]} Kh3 {[%emt 0:01:08]} 45. Rxg4 {[%emt 0:00:00]} 1-0

[Event "DSAM Bad Wildungen 2024"]
[Site "Bad Wildungen"]
[Date "2024.08.02"]
[Round "4.44"]
[White "Enns, Philipp"]
[Black "Vry, Fabian"]
[Result "1-0"]
[Annotator "NA"]
[ECO "E22"]
[WhiteElo "1806"]
[BlackElo "1513"]
[PlyCount "55"]
[EventDate "2024.07.31"]
[EventCountry "GER"]
[SourceTitle "playchess.com"]
[Source "ChessBase"]
[SourceQuality "1"]
[TimeControl "40/5400+30:900+30"]

1. d4 {[%emt 0:00:02]} Nf6 {[%emt 0:00:09]} 2. c4 {[%emt 0:00:32]} e6 {[%emt 0:01:13]} 3. Nc3 {[%emt 0:01:10]} Bb4 {[%emt 0:00:05]} 4. Qc2 {[%emt 0:00:06]} Bxc3+ {[%emt 0:04:02]} 5. Qxc3 {[%emt 0:00:20]} Ne4 {[%emt 0:00:22]} 6. Qc2 {[%emt 0:01:20]} f5 {[%emt 0:00:06]} 7. Nf3 {[%emt 0:05:16]} b6 {[%emt 0:01:02]} 8. h4 {[%emt 0:06:27]} Bb7 {[%emt 0:05:15]} 9. Bf4 {[%emt 0:03:56]} d6 {[%emt 0:00:37]} 10. e3 {[%emt 0:02:16]} Nc6 {[%emt 0:05:02]} 11. a3 {[%emt 0:08:13]} Qd7 {[%emt 0:07:23]} 12. O-O-O {[%emt 0:02:44]} a5 {[%emt 0:04:06]} 13. Bd3 {[%emt 0:06:12]} Nf6 {[%emt 0:02:01]} 14. Ng5 {[%emt 0:06:10]} h6 {[%emt 0:11:36]} 15. Nf3 {[%emt 0:10:50]} a4 {[%emt 0:06:44]} 16. d5 {[%emt 0:07:19]} Na5 {[%emt 0:14:57]} 17. dxe6 {[%emt 0:04:19]} Qxe6 {[%emt 0:03:23]} 18. Qxa4+ {[%emt 0:00:17]} Bc6 {[%emt 0:01:39]} 19. Qc2 {[%emt 0:00:21]} Ne4 {[%emt 0:02:19]} 20. Nd4 {[%emt 0:04:27]} Qd7 {[%emt 0:03:58]} 21. Nxc6 {[%emt 0:00:36]} Qxc6 {[%emt 0:00:11]} 22. f3 {[%emt 0:00:54]} Nc5 {[%emt 0:02:37]} 23. Bxf5 {[%emt 0:03:05]} Ncb3+ {[%emt 0:01:27]} 24. Kb1 {[%emt 0:00:15]} Qxc4 {[%emt 0:00:20]} 25. Qxc4 {[%emt 0:00:26]} Nxc4 {[%emt 0:00:01]} 26. Be6 {[%emt 0:00:39]} Nca5 {[%emt 0:00:41]} 27. Bd5 {[%emt 0:04:26]} Rc8 {[%emt 0:01:55]} 28. Kc2 {[%emt 0:01:09]} 1-0

[Event "DSAM Bad Wildungen 2024"]
[Site "Bad Wildungen"]
[Date "2024.08.02"]
[Round "4.45"]
[White "Voskanyan, Artur S."]
[Black "Schroeder, Timo"]
[Result "1/2-1/2"]
[Annotator "NA"]
[ECO "C01"]
[WhiteElo "1508"]
[BlackElo "1704"]
[PlyCount "52"]
[EventDate "2024.07.31"]
[EventCountry "GER"]
[SourceTitle "playchess.com"]
[Source "ChessBase"]
[SourceQuality "1"]
[TimeControl "40/5400+30:900+30"]

1. e4 {[%emt 0:00:04]} e6 {[%emt 0:00:06]} 2. d4 {[%emt 0:00:33]} d5 {[%emt 0:00:06]} 3. exd5 {[%emt 0:01:36]} exd5 {[%emt 0:00:08]} 4. Nf3 {[%emt 0:00:08]} Nf6 {[%emt 0:00:06]} 5. Bg5 {[%emt 0:00:43]} Bd6 {[%emt 0:00:18]} 6. Bd3 {[%emt 0:00:36]} O-O {[%emt 0:01:00]} 7. O-O {[%emt 0:00:36]} Bg4 {[%emt 0:00:18]} 8. Nbd2 {[%emt 0:01:22]} Nbd7 {[%emt 0:00:53]} 9. c3 {[%emt 0:00:28]} c6 {[%emt 0:00:07]} 10. Qc2 {[%emt 0:00:25]} h6 {[%emt 0:00:16]} 11. Bh4 {[%emt 0:00:26]} Qc7 {[%emt 0:00:08]} 12. Rfe1 {[%emt 0:04:44]} Rfe8 {[%emt 0:05:12]} 13. Bf5 {[%emt 0:13:01]} Bxf5 {[%emt 0:02:53]} 14. Qxf5 {[%emt 0:00:10]} Qb6 {[%emt 0:06:12]} 15. Qc2 {[%emt 0:13:28]} Qc7 {[%emt 0:01:20]} 16. Rab1 {[%emt 0:04:09]} Rac8 {[%emt 0:02:28]} 17. Qf5 {[%emt 0:07:47]} a5 {[%emt 0:07:21]} 18. a3 {[%emt 0:15:26]} a4 {[%emt 0:17:48]} 19. Bg3 {[%emt 0:10:13]} Bxg3 {[%emt 0:00:38]} 20. hxg3 {[%emt 0:01:34]} Nh7 {[%emt 0:08:42]} 21. Qc2 {[%emt 0:07:03]} b5 {[%emt 0:07:28]} 22. Nf1 {[%emt 0:01:50]} Nhf8 {[%emt 0:02:12]} 23. Re3 {[%emt 0:02:22]} Nf6 {[%emt 0:02:13]} 24. Rbe1 {[%emt 0:01:24]} Ne6 {[%emt 0:01:46]} 25. N1d2 {[%emt 0:01:25]} Re7 {[%emt 0:02:43]} 26. Ne5 {[%emt 0:00:56]} Rce8 {[%emt 0:31:08]} 1/2-1/2

[Event "DSAM Bad Wildungen 2024"]
[Site "Bad Wildungen"]
[Date "2024.08.03"]
[Round "5.1"]
[White "Dauth, Benjamin"]
[Black "Huesmann, Thomas"]
[Result "1/2-1/2"]
[Annotator "ChessBase"]
[ECO "C55"]
[WhiteElo "2247"]
[BlackElo "2165"]
[PlyCount "65"]
[EventDate "2024.07.31"]
[EventCountry "GER"]
[SourceTitle "playchess.com"]
[Source "ChessBase"]
[SourceQuality "1"]
[TimeControl "40/5400+30:900+30"]

1. e4 {[%emt 0:00:18]} e5 {[%emt 0:00:07]} 2. Nf3 {[%emt 0:00:08]} Nc6 {[%emt 0:00:07]} 3. Bc4 {[%emt 0:00:08]} Nf6 {[%emt 0:00:08]} 4. d3 {[%emt 0:00:03]} Be7 {[%emt 0:00:23]} 5. O-O {[%emt 0:00:05]} O-O {[%emt 0:00:12]} 6. a4 {[%emt 0:00:12]} d5 {[%emt 0:00:43]} 7. exd5 {[%emt 0:00:38]} Nxd5 {[%emt 0:00:09]} 8. Re1 {[%emt 0:00:15]} Bg4 {[%emt 0:00:36]} 9. h3 {[%emt 0:00:23]} Bxf3 {[%emt 0:00:34]} 10. Qxf3 {[%emt 0:00:04]} Nb6 {[%emt 0:00:41]} 11. Nd2 {[%emt 0:01:47]} Nxc4 {[%emt 0:02:14]} 12. Nxc4 {[%emt 0:00:06]} f6 {[%emt 0:00:12]} 13. Be3 {[%emt 0:00:49]} Nb4 {[%emt 0:02:46]} 14. Rac1 {[%emt 0:03:37]} Qd5 {[%emt 0:00:56]} 15. Qg3 {[%emt 0:02:12]} Kh8 {[%emt 0:10:42]} 16. f4 {[%emt 0:04:48]} e4 {[%emt 0:06:55]} 17. Bf2 {[%emt 0:00:27]} f5 {[%emt 0:01:42]} 18. b3 {[%emt 0:01:54]} Bc5 {[%emt 0:02:51]} 19. dxe4 {[%emt 0:04:08]} fxe4 {[%emt 0:00:36]} 20. Bxc5 {[%emt 0:02:13]} Qxc5+ {[%emt 0:00:08]} 21. Kh1 {[%emt 0:00:06]} Qf5 {[%emt 0:02:31]} 22. Rf1 {[%emt 0:00:56]} Nd5 {[%emt 0:01:56]} 23. Ne3 {[%emt 0:02:40]} Nxe3 {[%emt 0:00:07]} 24. Qxe3 {[%emt 0:00:03]} h6 {[%emt 0:02:11]} 25. g4 {[%emt 0:04:35]} Qd5 {[%emt 0:01:08]} 26. Rcd1 {[%emt 0:00:14]} Qc6 {[%emt 0:00:20]} 27. c4 {[%emt 0:00:07]} Rad8 {[%emt 0:01:49]} 28. f5 {[%emt 0:00:20]} Rd3 {[%emt 0:02:14]} 29. Rxd3 {[%emt 0:01:00]} exd3+ {[%emt 0:00:07]} 30. Kg1 {[%emt 0:00:05]} Qd6 {[%emt 0:13:06]} 31. Rd1 {[%emt 0:05:38]} Rd8 {[%emt 0:47:49]} 32. Rd2 a5 {[%emt 0:00:30]} 33. Kg2 {[%emt 1:07:01]} 1/2-1/2

[Event "DSAM Bad Wildungen 2024"]
[Site "Bad Wildungen"]
[Date "2024.08.03"]
[Round "5.2"]
[White "Boehme, Sebastian"]
[Black "Marcziter, Dmitrii"]
[Result "1-0"]
[Annotator "ChessBase"]
[ECO "B28"]
[WhiteElo "2232"]
[BlackElo "2204"]
[PlyCount "119"]
[EventDate "2024.07.31"]
[EventCountry "GER"]
[SourceTitle "playchess.com"]
[Source "ChessBase"]
[SourceQuality "1"]
[TimeControl "40/5400+30:900+30"]

1. e4 {[%emt 0:00:05]} c5 {[%emt 0:00:23]} 2. Nf3 {[%emt 0:00:08]} a6 {[%emt 0:00:16]} 3. c3 {[%emt 0:00:48]} d5 {[%emt 0:00:20]} 4. exd5 {[%emt 0:00:07]} Qxd5 {[%emt 0:00:04]} 5. d4 {[%emt 0:00:29]} Nf6 {[%emt 0:00:25]} 6. Be3 {[%emt 0:01:08]} cxd4 {[%emt 0:00:27]} 7. cxd4 {[%emt 0:00:04]} Bg4 {[%emt 0:02:04]} 8. Nc3 {[%emt 0:00:22]} Qd6 {[%emt 0:00:17]} 9. Qb3 {[%emt 0:00:56]} Bc8 {[%emt 0:03:26]} 10. Ne5 {[%emt 0:17:25]} e6 {[%emt 0:04:36]} 11. Nc4 {[%emt 0:00:19]} Qd8 {[%emt 0:00:56]} 12. Nb6 {[%emt 0:02:02]} Bd6 {[%emt 0:17:30]} 13. Nxa8 {[%emt 1:13:07]} b5 {[%emt 0:01:24]} 14. Bxb5+ {[%emt 0:00:00]} axb5 {[%emt 0:00:59]} 15. Nxb5 {[%emt 0:00:00]} O-O {[%emt 0:04:15]} 16. Nxd6 {[%emt 0:00:00]} Qxd6 {[%emt 0:00:14]} 17. Rc1 {[%emt 0:00:00]} Nc6 {[%emt 0:23:09]} 18. Qa3 {[%emt 0:00:00]} Nb4 {[%emt 0:06:08]} 19. Bd2 {[%emt 0:00:00]} Nfd5 {[%emt 0:08:34]} 20. Rc4 {[%emt 0:00:00]} Nd3+ {[%emt 0:05:19]} 21. Qxd3 {[%emt 0:04:00]} Ba6 {[%emt 0:01:14]} 22. O-O {[%emt 0:00:00]} Bxc4 {[%emt 0:02:21]} 23. Qxc4 {[%emt 0:00:00]} Rxa8 {[%emt 0:00:05]} 24. Rc1 {[%emt 0:00:00]} h6 {[%emt 0:00:48]} 25. g3 {[%emt 0:00:00]} Qd7 {[%emt 0:02:41]} 26. a3 {[%emt 0:00:00]} Kh7 {[%emt 0:01:05]} 27. Qc6 {[%emt 0:00:00]} Qa7 {[%emt 0:00:19]} 28. Rc4 {[%emt 0:00:00]} Rb8 {[%emt 0:00:27]} 29. Ra4 {[%emt 0:00:00]} Qe7 {[%emt 0:00:23]} 30. b4 {[%emt 0:00:00]} Qf6 {[%emt 0:00:53]} 31. Qc2+ {[%emt 0:00:00]} Kg8 {[%emt 0:00:41]} 32. Qd3 {[%emt 0:00:00]} Rd8 {[%emt 0:01:42]} 33. Ra5 {[%emt 0:00:00]} Ne7 {[%emt 0:01:33]} 34. Qe4 {[%emt 0:00:00]} Nd5 {[%emt 0:04:16]} 35. a4 {[%emt 0:00:00]} Rb8 {[%emt 0:02:15]} 36. Rc5 {[%emt 0:00:00]} g5 {[%emt 0:01:51]} 37. b5 {[%emt 0:00:00]} Nb6 {[%emt 0:01:23]} 38. a5 {[%emt 0:00:00]} Nd7 {[%emt 0:01:27]} 39. Rc7 {[%emt 0:00:00]} Qd8 {[%emt 0:00:08]} 40. b6 {[%emt 0:00:40]} Nf6 {[%emt 0:00:09]} 41. Qf3 {[%emt 0:17:01]} Kg7 {[%emt 0:05:48]} 42. Bc3 {[%emt 0:00:00]} Qd5 {[%emt 0:00:18]} 43. Qxd5 {[%emt 0:00:00]} Nxd5 {[%emt 0:01:17]} 44. Rc5 {[%emt 0:00:00]} Kf6 {[%emt 0:00:44]} 45. Bd2 {[%emt 0:00:00]} Ke7 {[%emt 0:00:16]} 46. Rb5 {[%emt 0:00:00]} Kd6 {[%emt 0:01:21]} 47. b7 {[%emt 0:00:00]} Kc6 {[%emt 0:01:10]} 48. a6 {[%emt 0:00:00]} Kxb5 {[%emt 0:00:47]} 49. a7 {[%emt 0:00:00]} Rxb7 {[%emt 0:00:09]} 50. a8=Q {[%emt 0:00:00]} Rc7 {[%emt 0:00:21]} 51. Qh8 {[%emt 0:00:00]} Kc4 {[%emt 0:00:44]} 52. h4 {[%emt 0:00:00]} Kd3 {[%emt 0:12:08]} 53. hxg5 {[%emt 0:00:05]} hxg5 {[%emt 0:00:00]} 54. Bxg5 {[%emt 0:13:44]} Kc4 {[%emt 0:00:00]} 55. Kg2 {[%emt 0:00:00]} Kb5 {[%emt 0:00:00]} 56. Kf3 {[%emt 0:00:00]} Kc4 {[%emt 0:00:00]} 57. Ke4 {[%emt 0:00:00]} Kb5 {[%emt 0:00:00]} 58. Ke5 {[%emt 0:00:00]} Kc6 {[%emt 0:00:00]} 59. Qe8+ {[%emt 0:00:00]} Rd7 {[%emt 0:00:00]} 60. Bd8 {[%emt 0:00:00]} 1-0

[Event "DSAM Bad Wildungen 2024"]
[Site "Bad Wildungen"]
[Date "2024.08.03"]
[Round "5.3"]
[White "Kracht, Raphael"]
[Black "Kocak, Ediz"]
[Result "0-1"]
[Annotator "ChessBase"]
[ECO "B22"]
[WhiteElo "2199"]
[BlackElo "2166"]
[PlyCount "80"]
[EventDate "2024.07.31"]
[EventCountry "GER"]
[SourceTitle "playchess.com"]
[Source "ChessBase"]
[SourceQuality "1"]
[TimeControl "40/5400+30:900+30"]

1. e4 {[%emt 0:04:34]} c5 {[%emt 0:11:23]} 2. c3 {[%emt 0:01:01]} Nf6 {[%emt 0:00:07]} 3. e5 {[%emt 0:00:03]} Nd5 {[%emt 0:00:05]} 4. Bc4 {[%emt 0:00:04]} Nb6 {[%emt 0:00:10]} 5. Bb3 {[%emt 0:00:04]} d6 {[%emt 0:00:26]} 6. exd6 {[%emt 0:00:23]} c4 {[%emt 0:03:30]} 7. Bc2 {[%emt 0:02:15]} Qxd6 {[%emt 0:00:08]} 8. Nf3 {[%emt 0:00:04]} Qe6+ {[%emt 0:00:15]} 9. Kf1 {[%emt 0:00:04]} Nc6 {[%emt 0:06:09]} 10. d4 {[%emt 0:07:40]} cxd3 {[%emt 0:00:07]} 11. Qxd3 {[%emt 0:00:07]} Bd7 {[%emt 0:32:26]} 12. Bf4 {[%emt 0:11:12]} f6 {[%emt 0:07:37]} 13. a4 {[%emt 0:05:41]} Rc8 {[%emt 0:07:59]} 14. Nbd2 {[%emt 0:02:25]} Nd5 {[%emt 0:00:59]} 15. Bg3 {[%emt 0:03:45]} Ndb4 {[%emt 0:02:11]} 16. Qe4 {[%emt 0:01:00]} Nxc2 {[%emt 0:00:15]} 17. Qxc2 {[%emt 0:00:04]} Nb4 {[%emt 0:02:31]} 18. Qe4 {[%emt 0:01:00]} Qxe4 {[%emt 0:01:41]} 19. Nxe4 {[%emt 0:00:04]} Nd3 {[%emt 0:01:04]} 20. Ke2 {[%emt 0:06:00]} Nxb2 {[%emt 0:01:07]} 21. Rhb1 {[%emt 0:00:43]} Nc4 {[%emt 0:00:26]} 22. Ned2 {[%emt 0:06:35]} Nxd2 {[%emt 0:11:16]} 23. Kxd2 {[%emt 0:00:20]} Bc6 {[%emt 0:01:23]} 24. Nd4 {[%emt 0:07:50]} Bxg2 {[%emt 0:00:18]} 25. f4 {[%emt 0:00:56]} Kf7 {[%emt 0:02:54]} 26. a5 {[%emt 0:01:00]} a6 {[%emt 0:00:32]} 27. Rb6 {[%emt 0:00:04]} g6 {[%emt 0:01:39]} 28. Re1 {[%emt 0:04:05]} Bh6 {[%emt 0:01:33]} 29. Kd3 {[%emt 0:01:05]} Bd5 {[%emt 0:00:31]} 30. f5 {[%emt 0:00:57]} Rhd8 {[%emt 0:00:58]} 31. Kc2 {[%emt 0:02:07]} gxf5 {[%emt 0:01:18]} 32. Nxf5 {[%emt 0:00:41]} Bf8 {[%emt 0:00:03]} 33. Kb2 {[%emt 0:00:54]} e6 {[%emt 0:01:27]} 34. Nd6+ {[%emt 0:00:23]} Bxd6 {[%emt 0:00:03]} 35. Bxd6 {[%emt 0:00:32]} Bc6 {[%emt 0:00:17]} 36. Rd1 {[%emt 0:01:26]} Rd7 {[%emt 0:00:43]} 37. c4 {[%emt 0:00:11]} Rg8 {[%emt 0:00:50]} 38. Rd2 {[%emt 0:01:20]} Rg5 {[%emt 0:00:10]} 39. c5 {[%emt 0:00:26]} Rxc5 {[%emt 0:00:30]} 40. Rb4 {[%emt 0:01:03]} Rb5 {[%emt 0:01:39]} 0-1

[Event "DSAM Bad Wildungen 2024"]
[Site "Bad Wildungen"]
[Date "2024.08.03"]
[Round "5.4"]
[White "Dathe, Frederick"]
[Black "Rolle, Eric"]
[Result "1-0"]
[Annotator "ChessBase"]
[ECO "A25"]
[WhiteElo "2247"]
[BlackElo "2167"]
[PlyCount "77"]
[EventDate "2024.07.31"]
[EventCountry "GER"]
[SourceTitle "playchess.com"]
[Source "ChessBase"]
[SourceQuality "1"]
[TimeControl "40/5400+30:900+30"]

1. c4 {[%emt 0:00:42]} e5 {[%emt 0:00:23]} 2. g3 {[%emt 0:00:47]} Nc6 {[%emt 0:01:57]} 3. Bg2 {[%emt 0:00:43]} Nf6 {[%emt 0:00:51]} 4. Nc3 {[%emt 0:02:15]} Bb4 {[%emt 0:02:14]} 5. e4 {[%emt 0:02:32]} Bxc3 {[%emt 0:04:35]} 6. bxc3 {[%emt 0:02:51]} Qe7 {[%emt 0:01:06]} 7. d3 {[%emt 0:02:55]} d6 {[%emt 0:06:53]} 8. Rb1 {[%emt 0:04:19]} O-O {[%emt 0:05:15]} 9. Nf3 {[%emt 0:09:52]} Nd7 {[%emt 0:06:58]} 10. Nh4 {[%emt 0:04:57]} Nc5 {[%emt 0:10:33]} 11. O-O {[%emt 0:02:52]} g6 {[%emt 0:04:55]} 12. Bh6 {[%emt 0:04:55]} Re8 {[%emt 0:00:06]} 13. Qd2 {[%emt 0:03:14]} Ne6 {[%emt 0:03:40]} 14. Be3 {[%emt 0:15:33]} Na5 {[%emt 0:01:30]} 15. f4 {[%emt 0:04:34]} exf4 {[%emt 0:03:00]} 16. Bxf4 {[%emt 0:01:46]} Nxf4 {[%emt 0:02:22]} 17. Rxf4 {[%emt 0:00:54]} Be6 {[%emt 0:04:34]} 18. Rf2 {[%emt 0:02:09]} Kg7 {[%emt 0:01:06]} 19. Rbf1 {[%emt 0:05:00]} a6 {[%emt 0:03:09]} 20. Nf5+ {[%emt 0:03:17]} Bxf5 {[%emt 0:04:49]} 21. exf5 {[%emt 0:00:05]} Qe3 {[%emt 0:00:13]} 22. Qd1 {[%emt 0:05:34]} Re5 {[%emt 0:02:55]} 23. Kh1 {[%emt 0:02:20]} Rae8 {[%emt 0:10:15]} 24. Be4 {[%emt 0:00:40]} Nxc4 {[%emt 0:07:24]} 25. fxg6 {[%emt 0:01:11]} fxg6 {[%emt 0:01:14]} 26. Rf7+ {[%emt 0:01:47]} Kg8 {[%emt 0:03:50]} 27. Qg4 {[%emt 0:01:04]} Rxe4 {[%emt 0:01:22]} 28. dxe4 {[%emt 0:00:47]} Nd2 {[%emt 0:00:31]} 29. Rf8+ {[%emt 0:08:00]} Rxf8 {[%emt 0:00:42]} 30. Qe6+ {[%emt 0:00:04]} Kg7 {[%emt 0:00:57]} 31. Qe7+ {[%emt 0:00:04]} Kh6 {[%emt 0:00:06]} 32. Qh4+ {[%emt 0:00:09]} Kg7 {[%emt 0:00:08]} 33. Qe7+ {[%emt 0:00:03]} Kh6 {[%emt 0:00:03]} 34. Qxf8+ {[%emt 0:00:04]} Kh5 {[%emt 0:00:11]} 35. Rf4 {[%emt 0:00:22]} Qe1+ {[%emt 0:03:41]} 36. Kg2 {[%emt 0:00:06]} Qe2+ {[%emt 0:00:44]} 37. Kh3 {[%emt 0:00:25]} Nxe4 {[%emt 0:02:39]} 38. Rh4+ {[%emt 0:00:12]} Kg5 {[%emt 0:00:01]} 39. Qf4# {[%emt 0:00:06]} 1-0

[Event "DSAM Bad Wildungen 2024"]
[Site "Bad Wildungen"]
[Date "2024.08.03"]
[Round "5.5"]
[White "Kocharin, Timur"]
[Black "Diller, Daniel"]
[Result "1/2-1/2"]
[Annotator "ChessBase"]
[ECO "D35"]
[WhiteElo "2297"]
[BlackElo "2140"]
[PlyCount "107"]
[EventDate "2024.07.31"]
[EventCountry "GER"]
[SourceTitle "playchess.com"]
[Source "ChessBase"]
[SourceQuality "1"]
[TimeControl "40/5400+30:900+30"]

1. d4 {[%emt 0:00:04]} Nf6 {[%emt 0:03:27]} 2. c4 {[%emt 0:01:19]} e6 {[%emt 0:00:05]} 3. Nc3 {[%emt 0:00:04]} d5 {[%emt 0:00:09]} 4. Bg5 {[%emt 0:00:22]} Be7 {[%emt 0:01:11]} 5. cxd5 {[%emt 0:00:09]} exd5 {[%emt 0:00:58]} 6. e3 {[%emt 0:00:06]} h6 {[%emt 0:01:07]} 7. Bh4 {[%emt 0:00:37]} O-O {[%emt 0:00:13]} 8. Bd3 {[%emt 0:00:04]} Re8 {[%emt 0:00:27]} 9. Qc2 {[%emt 0:00:23]} c5 {[%emt 0:01:11]} 10. dxc5 {[%emt 0:06:26]} d4 {[%emt 0:02:47]} 11. exd4 {[%emt 0:01:57]} Qxd4 {[%emt 0:02:21]} 12. Nf3 {[%emt 0:00:20]} Qxc5 {[%emt 0:01:49]} 13. O-O {[%emt 0:07:24]} Bg4 {[%emt 0:40:20]} 14. Nb5 {[%emt 0:04:15]} Qxc2 {[%emt 0:06:19]} 15. Bxc2 {[%emt 0:00:04]} Na6 {[%emt 0:09:52]} 16. Rfe1 {[%emt 0:02:24]} Rac8 {[%emt 0:07:15]} 17. Bb3 {[%emt 0:02:55]} Bxf3 {[%emt 0:01:21]} 18. gxf3 {[%emt 0:00:10]} Nc5 {[%emt 0:00:46]} 19. Nxa7 {[%emt 0:00:58]} Ra8 {[%emt 0:00:36]} 20. Nb5 {[%emt 0:00:27]} Nxb3 {[%emt 0:01:07]} 21. axb3 {[%emt 0:00:04]} Rxa1 {[%emt 0:02:08]} 22. Rxa1 {[%emt 0:03:34]} Nd5 {[%emt 0:05:42]} 23. Bg3 {[%emt 0:01:36]} Bf6 {[%emt 0:03:48]} 24. Rd1 {[%emt 0:00:36]} Nb4 {[%emt 0:00:55]} 25. Rd2 {[%emt 0:01:44]} Re1+ {[%emt 0:00:47]} 26. Kg2 {[%emt 0:00:07]} Nc6 {[%emt 0:03:25]} 27. Nd6 {[%emt 0:01:36]} b6 {[%emt 0:00:46]} 28. Ne4 {[%emt 0:02:56]} Be7 {[%emt 0:01:43]} 29. Bd6 {[%emt 0:01:55]} f5 {[%emt 0:01:30]} 30. Nc3 {[%emt 0:01:17]} Bf6 {[%emt 0:00:38]} 31. Bc7 {[%emt 0:00:20]} Nd4 {[%emt 0:00:44]} 32. Bxb6 {[%emt 0:00:17]} Rg1+ {[%emt 0:00:13]} 33. Kxg1 {[%emt 0:00:39]} Nxf3+ {[%emt 0:00:00]} 34. Kg2 {[%emt 0:00:08]} Nxd2 {[%emt 0:00:03]} 35. b4 {[%emt 0:00:12]} Nc4 {[%emt 0:00:51]} 36. Bc7 {[%emt 0:00:03]} Nxb2 {[%emt 0:00:24]} 37. Nd5 {[%emt 0:00:08]} Nc4 {[%emt 0:01:18]} 38. b5 {[%emt 0:00:58]} Kf7 {[%emt 0:00:28]} 39. Ne3 {[%emt 0:04:41]} Nxe3+ {[%emt 0:00:22]} 40. fxe3 {[%emt 0:00:01]} Ke6 {[%emt 0:00:09]} 41. Kf3 {[%emt 0:18:04]} Kd5 {[%emt 0:13:44]} 42. b6 {[%emt 0:00:00]} Kc6 {[%emt 0:00:02]} 43. Kf4 {[%emt 0:00:00]} g6 {[%emt 0:01:42]} 44. e4 {[%emt 0:00:00]} fxe4 {[%emt 0:00:56]} 45. Kxe4 {[%emt 0:00:00]} Bc3 {[%emt 0:00:38]} 46. h3 {[%emt 0:00:00]} Bf6 {[%emt 0:01:06]} 47. Be5 {[%emt 0:00:00]} Bd8 {[%emt 0:00:14]} 48. Bd4 {[%emt 0:00:00]} h5 {[%emt 0:00:25]} 49. Ke5 {[%emt 0:00:00]} g5 {[%emt 0:00:29]} 50. Kf5 {[%emt 0:00:00]} g4 {[%emt 0:00:09]} 51. hxg4 {[%emt 0:00:00]} hxg4 {[%emt 0:00:05]} 52. Kf4 {[%emt 0:00:00]} Bxb6 {[%emt 0:00:27]} 53. Bxb6 {[%emt 0:00:00]} Kxb6 {[%emt 0:00:05]} 54. Kxg4 {[%emt 0:00:00]} 1/2-1/2